Cogmind - Beta 14 @@@ ROGUE MODE // 2025.03.30 @ 23:03:42 Player: golanco Result: Self-destructed Performance ------------- Evolutions (0) 0 Regions Visited (4) 800 Robots Destroyed (24) 120 Value Destroyed (361) 361 Prototype IDs (2) 40 Alien Tech Used (0) 0 Bonus (0) 0 TOTAL SCORE: 1321 Bonus ------- None Cogmind --------- Core Integrity 192/250 Matter 300/300 Energy 100/100 System Corruption 0% Temperature Cool (0) Movement Treading (240) Ox1 Location -9/Scraptown Parts ------- > --- POWER (1) -------- (None) > --- PROPULSION (2) --- Light Treads > --- UTILITY (2) ------ Large Storage Unit Sensor Array > --- WEAPON (2) ------- Light Cannon > --- INVENTORY (15) --- Light Ion Engine Improved Ion Engine Medium Storage Unit Seismic Detector Small Laser Assault Rifle Assault Rifle Light Cannon Grenade Launcher Grenade Launcher Peak State ------------ > --- POWER ------------ Light Ion Engine > --- PROPULSION ------- Light Treads Light Treads > --- UTILITY ---------- Medium Storage Unit Sensor Array > --- WEAPON ----------- EM Pulse Gun Assault Rifle > --- INVENTORY -------- Light Ion Engine Small Storage Unit Seismic Detector Small Laser Light Assault Rifle Light Cannon Light Cannon Grenade Launcher Grenade Launcher Grenade Launcher [Rating: 8] Favorites ----------- Power Light Ion Engine Engine Light Ion Engine Propulsion Light Treads Treads Light Treads Utility Sensor Array Device Sensor Array Storage Large Storage Unit Weapon EM Pulse Gun Energy Gun EM Pulse Gun Ballistic Gun Assault Rifle Ballistic Cannon Light Cannon Launcher Grenade Launcher Build | -11 -10 -10 -9 -9 ------- Run | Yrd Mat Sub Rec Scr Slots Evolved . | . . . . . Power . | . . . . . Propulsion . | . . . . . Utility . | . . . . . Weapon . | . . . . . Parts Attached 13 | 7 5 1 . . Power 1 | 1 . . . . Engine 1 | 1 . . . . Core . | . . . . . Reactor . | . . . . . Propulsion 2 | 2 . . . . Treads 2 | 2 . . . . Leg . | . . . . . Wheel . | . . . . . Hover . | . . . . . Flight . | . . . . . Utility 5 | 2 3 . . . Device 2 | 1 1 . . . Storage 3 | 1 2 . . . Processor . | . . . . . Hackware . | . . . . . Protection . | . . . . . Artifact . | . . . . . Weapon 5 | 2 2 1 . . Energy Gun 2 | 1 1 . . . Energy Cannon . | . . . . . Ballistic Gun 1 | 1 . . . . Ballistic Cannon 1 | . . 1 . . Launcher 1 | . 1 . . . Special Weapon . | . . . . . Impact Weapon . | . . . . . Slashing Weapon . | . . . . . Piercing Weapon . | . . . . . Special Melee Weapon . | . . . . . Unidentified Prototypes . | . . . . . Parts Lost 4 | . . 2 2 . Power 1 | . . 1 . . Propulsion 1 | . . . 1 . Utility . | . . . . . Weapon 2 | . . 1 1 . Highest Loss Streak 2 | . . 2 2 . To Critical Strikes . | . . . . . Average Slot Usage (%) 83 | . 100 79 57 57 Engine 8 | . 14 2 . . Treads 22 | . 28 28 14 14 Device 14 | . 14 14 14 14 Storage 14 | . 14 14 14 14 Energy Gun 8 | . 14 2 . . Ballistic Gun 5 | . 9 . . . Ballistic Cannon 5 | . . 2 14 14 Launcher 3 | . 4 14 . . Peak Build Rating 8 | 7 8 8 6 5 Average Rating 6 | 5 7 6 5 5 On Entrance 5 | . 7 8 6 5 Naked Turns . | . . . . . Heaviest Build 29 | 12 29 29 27 24 Greatest Support 40 | 40 40 40 40 20 Greatest Overweight (x) 1 | . . . 1 1 Average Overweight (x) . | . . . . 1 Largest Inventory Capacity 15 | 8 15 15 15 15 Average Capacity 11 | 7 10 15 15 15 Most Carried 10 | 2 10 10 10 10 Average Carried 7 | 1 7 9 9 10 Final Capacity 15 | 8 15 15 15 15 Final Carried 10 | 2 10 9 10 10 Class Distribution -------------------- 100% | Mutant Dominant Class ---------------- Mutant | -10/Materials Mutant | -10/Subcaves Mutant | -9/Recycling Mutant | -9/Scraptown Resources | -11 -10 -10 -9 -9 ----------- Run | Yrd Mat Sub Rec Scr Matter Collected 631 | 272 207 18 134 . Remotely . | . . . . . Salvage Created 566 | 61 464 22 19 . Parts 36 | 7 23 4 2 . Haulers Intercepted 1 | . 1 . . . Recyclers Shooed 6 | . 6 . . . Parts Field Recycled . | . . . . . Retrieved Matter . | . . . . . Parts Self-Destructed 4 | . . 4 . . Prevented . | . . . . . Kills | -11 -10 -10 -9 -9 ------- Run | Yrd Mat Sub Rec Scr Combat Hostiles Destroyed 13 | . 8 4 1 . Guns 8 | . 8 . . . AOE 5 | . . 4 1 . Classes Destroyed 10 | 1 7 1 1 . Worker 1 | . 1 . . . Tunneler 3 | 3 . . . . Hauler 1 | . 1 . . . Recycler 2 | . 2 . . . Mechanic 1 | . 1 . . . Operator 1 | . 1 . . . Turret 2 | . . 2 . . Swarmer 10 | . 6 4 . . Grunt 2 | . 2 . . . Sentry 1 | . . . 1 . Best Kill Streak 6 | 3 5 6 1 . Combat Bots Only 4 | . 3 4 1 . Max Kills in Single Turn 3 | 1 1 3 1 . Gunslinging . | . . . . . Exploded 3 | . . 3 1 . Melee . | . . . . . Uniques/NPCs Destroyed . | . . . . . Combat | -11 -10 -10 -9 -9 -------- Run | Yrd Mat Sub Rec Scr Hostile Shots Fired 104 | . 33 65 6 . Missed 48 | . 12 36 . . Damage Taken 625 | . 235 196 194 . Core 58 | . 14 20 24 . Absorbed by Shields . | . . . . . Core Remaining (%) 100 | 100 . . . . Volleys Fired 69 | 12 45 9 3 . Largest 2 | 2 2 2 2 . Hottest 70 | 60 70 70 65 . Shots Fired 131 | 24 90 11 6 . Gun 113 | 24 86 3 . . Cannon 3 | . . . 3 . Launcher 15 | . 4 8 3 . Special . | . . . . . Kinetic 56 | 12 41 . 3 . Thermal 14 | 12 2 . . . Explosive 15 | . 4 8 3 . Electromagnetic 46 | . 43 3 . . Robot Hit Streak 12 | 5 8 8 12 . Robot Miss Streak 6 | 2 6 1 1 . Penetration Max . | . . . . . Secondary Targets 2 | . 2 . . . Max Gunslinging Chain 1 | . 1 . . . Shots Hit Robots 76 | 15 48 8 5 . Core Hits 41 | 4 22 12 3 . Critical Kills . | . . . . . Critical Parts Destroyed . | . . . . . Critical Strikes 1 | . 1 . . . Corrupt 1 | . 1 . . . Melee Attacks . | . . . . . Impact . | . . . . . Slashing . | . . . . . Piercing . | . . . . . Sneak Attacks . | . . . . . Combat Hostiles . | . . . . . Follow-up Attacks . | . . . . . Damage Inflicted 1282 | 175 726 295 86 . Guns 794 | 175 608 11 . . Cannons 35 | . . . 35 . Explosions 453 | . 118 284 51 . Melee . | . . . . . Ramming . | . . . . . Kinetic 372 | 66 271 . 35 . Thermal 227 | 109 118 . . . Explosive 335 | . . 284 51 . Electromagnetic 348 | . 337 11 . . Impact . | . . . . . Slashing . | . . . . . Piercing . | . . . . . Highest Corruption . | . . . . . Average Corruption . | . . . . . Corruption Purged . | . . . . . Corruption Blocked . | . . . . . Overload Shots . | . . . . . Overflow Damage 62 | . 15 14 33 . Projectiles . | . . . . . Explosions 62 | . 15 14 33 . Melee . | . . . . . Knockbacks . | . . . . . Impact . | . . . . . Kinetic . | . . . . . Secondary . | . . . . . Self-Inflicted Damage 160 | . 49 . 111 . Shots 5 | . 2 . 3 . Rammed . | . . . . . Targets Rammed . | . . . . . Kicked . | . . . . . Crushed . | . . . . . Highest Temperature 36 | . 36 7 5 . Average Temperature 14 | . 16 3 3 . Received Heat Transfer 213 | . 18 168 27 . Siege Activations . | . . . . . Robots Corrupted . | . . . . . Combat Hostiles . | . . . . . Parts Fried . | . . . . . Impact Corruptions . | . . . . . Robots Melted . | . . . . . Combat Hostiles . | . . . . . Parts Melted . | . . . . . Heat Transferred 450 | 250 200 . . . Parts Sabotaged . | . . . . . Parts Stolen . | . . . . . Parts Stripped . | . . . . . Power Chain Reactions 2 | . 2 . . . Alert | -11 -10 -10 -9 -9 ------- Run | Yrd Mat Sub Rec Scr Peak Influence 232 | 15 232 . 110 . Initial 95 | . 9 . 95 . Average 101 | 5 121 . 109 . Maximum Alert Level 1 | . 1 . . . Low Security (%) 89 | 100 81 . 100 . Level 1 10 | . 18 . . . Level 2 . | . . . . . Level 3 . | . . . . . Level 4 . | . . . . . Level 5 . | . . . . . High Security . | . . . . . Max Security . | . . . . . Squads Dispatched 2 | . 2 . . . Investigation 1 | . 1 . . . Extermination . | . . . . . Reinforcement 1 | . 1 . . . Assault . | . . . . . Garrison . | . . . . . Intercept . | . . . . . Searches Triggered . | . . . . . Construction Impeded . | . . . . . Haulers Reinforced . | . . . . . Active Scanning Responses . | . . . . . Cargo Convoy Interrupts . | . . . . . Stealth | -11 -10 -10 -9 -9 --------- Run | Yrd Mat Sub Rec Scr Distress Signals . | . . . . . Communications Jammed . | . . . . . Distress Signals . | . . . . . Times Spotted 25 | . 16 8 1 . Peak Tracking Total 6 | . 3 6 1 . Tactical Retreats 2 | . 1 1 . . Traps | -11 -10 -10 -9 -9 ------- Run | Yrd Mat Sub Rec Scr Traps Triggered . | . . . . . Indirectly . | . . . . . Trap Hack Attempts . | . . . . . Triggered . | . . . . . Disarmed . | . . . . . Reprogrammed . | . . . . . Reused . | . . . . . Traps Extracted . | . . . . . Installed . | . . . . . Triggered . | . . . . . Machines | -11 -10 -10 -9 -9 ---------- Run | Yrd Mat Sub Rec Scr Machines Disabled 4 | . 1 3 . . Max in Single Turn 1 | . 1 1 . . Machines Repaired . | . . . . . Machines Dismantled . | . . . . . Machines Sabotaged . | . . . . . Overloaded Fab Kills . | . . . . . Hacking | -11 -10 -10 -9 -9 --------- Run | Yrd Mat Sub Rec Scr Machines Accessed 8 | . 5 . 3 . Terminals 5 | . 4 . 1 . Fabricators . | . . . . . Repair Stations . | . . . . . Recycling Units 2 | . 1 . 1 . Scanalyzers . | . . . . . Garrison Access . | . . . . . Total Hacks 37 | . 14 . 23 . Successful 22 | . 3 . 19 . Failed 15 | . 11 . 4 . Catastrophic 1 | . . . 1 . Database Lockouts . | . . . . . Manual . | . . . . . Terminals 14 | . 11 . 3 . Fabricators . | . . . . . Repair Stations . | . . . . . Recycling Units 4 | . 3 . 1 . Scanalyzers . | . . . . . Garrison Access . | . . . . . Terminal Hacks 21 | . 2 . 19 . Record 19 | . . . 19 . Prototype ID Bank 1 | . 1 . . . Hauler Manifests 1 | . 1 . . . Fabricator Hacks . | . . . . . Repair Station Hacks . | . . . . . Recycling Unit Hacks 1 | . 1 . . . Retrieve Components 1 | . 1 . . . Scanalyzer . | . . . . . Garrison Access Hacks . | . . . . . Unauthorized Hacks . | . . . . . Terminals . | . . . . . Fabricators . | . . . . . Repair Stations . | . . . . . Recycling Units . | . . . . . Scanalyzers . | . . . . . Garrison Access . | . . . . . Data Cores Recovered . | . . . . . Used . | . . . . . Hacking Detections 7 | . 5 . 2 . Full Trace Events 2 | . 2 . . . Feedback Events . | . . . . . Feedback Blocked . | . . . . . Robot Schematics Acquired . | . . . . . Robots Built . | . . . . . Authchips . | . . . . . Time . | . . . . . Total Robot Build Rating . | . . . . . Part Schematics Acquired . | . . . . . Parts Built . | . . . . . Authchips . | . . . . . Time . | . . . . . Total Part Build Rating . | . . . . . Parts Repaired . | . . . . . Time . | . . . . . Parts Recycled . | . . . . . Recycled Matter . | . . . . . Retrieved Matter . | . . . . . Retrieved Components . | . . . . . Parts Scanalyzed . | . . . . . Part Schematics Acquired . | . . . . . Parts Damaged . | . . . . . Bothacking | -11 -10 -10 -9 -9 ------------ Run | Yrd Mat Sub Rec Scr Used RIF Installer . | . . . . . Robots Hacked . | . . . . . Non-combat . | . . . . . Combat . | . . . . . Robot Hacks Applied . | . . . . . Relay Couplers Released . | . . . . . Fabnet Peak Effective % . | . . . . . Robots Rewired . | . . . . . Allies Hacked . | . . . . . Hacks Repelled . | . . . . . Allies | -11 -10 -10 -9 -9 -------- Run | Yrd Mat Sub Rec Scr Total Allies . | . . . . . Largest Group . | . . . . . Highest-Rated Group . | . . . . . Highest-Rated Ally . | . . . . . Total Orders . | . . . . . Ally Attacks . | . . . . . Total Damage . | . . . . . Kills . | . . . . . Allies Corrupted . | . . . . . Allies Melted . | . . . . . Intel | -11 -10 -10 -9 -9 ------- Run | Yrd Mat Sub Rec Scr Robot Analysis Total . | . . . . . Derelict Logs Recovered . | . . . . . Drone Launches . | . . . . . Drone Recoveries . | . . . . . Exploration | -11 -10 -10 -9 -9 ------------- Run | Yrd Mat Sub Rec Scr Turns Passed 1307 | 161 660 50 325 111 Spaces Moved 565 | 74 295 19 131 46 Core 4 | 4 . . . . Treads 561 | 70 295 19 131 46 Legs . | . . . . . Wheels . | . . . . . Hover . | . . . . . Flight . | . . . . . Fastest Speed 50 | 50 160 160 160 240 Average Speed 184 | 154 160 160 238 240 Slowest Speed 240 | 160 160 160 240 240 Overloaded Moves . | . . . . . Propulsion Burnouts . | . . . . . Robots Hopped . | . . . . . Cave-ins Triggered . | . . . . . Exploration Rate (%) 19 | 4 54 2 31 7 Regions Visited 4 Branch Regions 3 Pre-discovered Areas . | . . . . . Known Exits Taken . | . . . . . Unknown Exits Taken 4 | 1 1 1 1 . Scrap Searched 1 | . . . . 1 Spaces Dug . | . . . . . Terrain Destroyed 55 | . 27 10 18 . Melee . | . . . . . Projectile . | . . . . . AOE 55 | . 27 10 18 . Terrain Rammed . | . . . . . Walls Destroyed . | . . . . . Machines Disabled . | . . . . . Actions | -11 -10 -10 -9 -9 --------- Run | Yrd Mat Sub Rec Scr Total 700 | 94 394 28 138 46 Wait 40 | . 40 . . . Move 561 | 73 294 18 130 46 Hop . | . . . . . Pick Up 9 | 2 6 . 1 . Fast Attach 9 | 7 2 . . . Attach 1 | . . 1 . . Detach 2 | . 2 . . . Swap 3 | . 3 . . . Drop 2 | . 2 . . . Fire 69 | 12 45 9 3 . Melee . | . . . . . Ram . | . . . . . Kick . | . . . . . Crush . | . . . . . Escape Stasis . | . . . . . Rewire 4 | . . . 4 . Trap . | . . . . . Miscellaneous . | . . . . . Route ------- -11/Scrapyard -10/Materials (discovered 3 exits: [*Mat x2] / [*Sub]) -10/Subcaves -9/Recycling (discovered 2 exits: [*Fac] / [*Scr]) -9/Scraptown History --------- Turn | Location | Event 7 | -11/Scrapyard | Discovered new exit (range 14) 162 | -11/Scrapyard | Entered Materials 303 | -10/Materials | Build established: Mutant 379 | -10/Materials | Discovered new exit (range 15) 722 | -10/Materials | Discovered new exit (range 16) 808 | -10/Materials | Discovered new exit (range 9) 822 | -10/Materials | Entered Subcaves 822 | -10/Subcaves | Discovered new exit (range 13) 872 | -10/Subcaves | Entered Recycling 1122 | -9/Recycling | Discovered new exit (range 6) 1142 | -9/Recycling | Scanned before Scraplab entrance 1194 | -9/Recycling | Discovered new exit (range 2) 1197 | -9/Recycling | Entered Scraptown 1308 | -9/Scraptown | Self-destructed Last Messages --------------- PO-AUD(c) is busy at their terminal. EXIT=FOUND LOCATION=UNKNOWN GOAL=ESCAPE LOCAL NARROWCAST: Welcome to Scraptown. Please remember it is vital to either disarm yourself or ensure you are corruption-free before entering the area. Use the C-Scrubber! You bear full responsibility for any potential consequences of non-compliance. Enjoy your stay. ANNOUNCEMENT: Unclassified nonregistered visitor in outer Scraptown, temporarily sealing HQ gate. ANNOUNCEMENT: To all visitors: Defacing our home will be considered a hostile act, tread lightly and respect boundaries. Searching scrap... Found Imp. Targeting Computer. Found 57 Matter. Map ----- +----------------------------------------------------+ | ?????????????????????????????????????????????????? | | ?????????????????????????????????????????????????? | | ?????????????????????????????????????????????????? | | ?????????????????????????????????????????????????? | | ?????????????????????????????????????????????????? | | ?????????????????????????????????????????????????? | | ?????#???????????????????????????????????????????? | | ???? #???????????????????????????????????????????? | | ??? #???????????????????????????????????????????? | | ??? #???????????????????????????????????????????? | | ?? #???????????????????????????????????????????? | | ## #???????????????????????????????????????????? | | ##????????????##????????????????????????????? | | #???????????? ????????????????????????????? | | ##????##?????? #????????????????????????????? | | ### ##????"""????"" "????????????????????????????? | | #????????"" ""??""" "#???????????????????????????? | | ######???"" "?#""" "#???????????????????????????? | | """""#??#" ""##"" "#????#########??????????????? | | " "#??#"" ""##"" "#?#"""""""""""??????????????? | | "#??#"" ""##"| "#?#"" ] ! * "??????????????? | | """""#??#"" ""##"| "#?#""!/|[[=! "??????????????? | | ######??#" ""##"" "#?#"" "??????????????? | | #########"" ""##"" ""###""" """""""# #?????????? | | #?????????? | | @ #?????????? | | ###"""" """""######""" """##""" """#?????????????? | | ??#" "#????#"" |"#????? ???????????????? | | ??#" "#????#" j""#??????????????????????? | | ??#" "#????#" ""#??????????????????????? | | ??#""""" "#????#" ??????????????????????? | | ??#""""""""""#????#"""""""##?????????????????????? | | ??############????#########??????????????????????? | | | | | | | | | | | | | | | | | | | | | | | | | | | | | | | | | | | +----------------------------------------------------+ Best States ------------- Heat Dissipation 25 Energy Generation 10 Energy Capacity 125 Matter Stores 300 Matter Capacity 300 Sight Range 16 Robot Scan Range 14 Terrain Scan Density 10 Evasion (%) 40 Recoil Reduction 2 Item Schematics ----------------- None Robot Schematics ------------------ None Fabricated ------------ Nothing Alien Tech Used ----------------- None Achievements -------------- None Challenges ------------ None Game ------ Seed ChargeBladeKinecellerator Manual? 0 Play Time 00:08:42 Cumulative 27.2 hours Start 2025.03.30 @ 22:55:01 End 2025.03.30 @ 23:03:42 Sessions 1 Manual Loads 0 Difficulty Rogue Special Mode None Game No. 74 Rogue 74 Adventurer 0 Explorer 0 Win Type - Total 0 Types 0/0/0/0/0/0/0/0/0 Lore% 15 Gallery% 23 Achievement% 25 Wizard Run 0 Options --------- Layout 1 ASCII 0 Keyboard 0 Movement Mouse Keybinds 0 Fullscreen 1 Font 36/Smallcaps Map View 50x40 Zoom Use 0% Tactical HUD 0 Map Filters NONE Filters NONE Steam 1 RUN: 75d03f71-0c52-4289-8c29-1dc71022190e